Cogmind - Beta 13 @@@ ROGUE MODE // 2024.08.06 @ 03:46:05 Player: gigi283 Result: Destroyed by as-04094 with Assembled Maul Performance ------------- Evolutions (0) 0 Regions Visited (3) 600 Robots Destroyed (11) 55 Value Destroyed (233) 233 Prototype IDs (0) 0 Alien Tech Used (0) 0 Bonus (0) 0 TOTAL SCORE: 888 Bonus ------- None Cogmind --------- Core Integrity 0/250 Matter 165/300 Energy 100/100 System Corruption 13% Temperature Cool (0) Movement Core (100) Ox1 Location -10/Exiles Parts ------- > --- POWER (1) -------- (None) > --- PROPULSION (2) --- (None) > --- UTILITY (2) ------ Small Storage Unit > --- WEAPON (2) ------- (None) > --- INVENTORY (8) ---- Light Nuclear Core Hover Unit Improved Heat Sink Hardened Medium Armor Plating Authchip [R/Combat] Heavy Particle Cannon Grenade Launcher Maul Peak State ------------ > --- POWER ------------ Light Ion Engine > --- PROPULSION ------- Wheel Wheel > --- UTILITY ---------- Small Storage Unit Sensor Array > --- WEAPON ----------- Assault Rifle Assault Cannon > --- INVENTORY -------- Light Nuclear Core Hover Unit Improved Heat Sink Hardened Medium Armor Plating Authchip [R/Combat] Heavy Particle Cannon Grenade Launcher Maul [Rating: 11] Favorites ----------- Power Light Ion Engine Engine Light Ion Engine Propulsion Wheel Wheel Wheel Flight Unit Flight Unit Utility Small Storage Unit Device Sensor Array Storage Small Storage Unit Weapon Assault Rifle Energy Gun Medium Laser Ballistic Gun Assault Rifle Ballistic Cannon Assault Cannon Special Weapon Mining Laser Build | -11 -10 -10 -10 ------- Run | Yrd Mat Min Exi Slots Evolved . | . . . . Power . | . . . . Propulsion . | . . . . Utility . | . . . . Weapon . | . . . . Parts Attached 20 | 6 5 9 . Power 2 | 1 . 1 . Engine 2 | 1 . 1 . Core . | . . . . Reactor . | . . . . Propulsion 5 | 2 3 . . Treads . | . . . . Leg . | . . . . Wheel 4 | 2 2 . . Hover . | . . . . Flight 1 | . 1 . . Utility 2 | 1 1 . . Device 1 | . 1 . . Storage 1 | 1 . . . Processor . | . . . . Hackware . | . . . . Protection . | . . . . Artifact . | . . . . Weapon 11 | 2 1 8 . Energy Gun 1 | 1 . . . Energy Cannon . | . . . . Ballistic Gun 4 | 1 1 2 . Ballistic Cannon 1 | . . 1 . Launcher . | . . . . Special Weapon 5 | . . 5 . Impact Weapon . | . . . . Slashing Weapon . | . . . . Piercing Weapon . | . . . . Special Melee Weapon . | . . . . Unidentified Prototypes . | . . . . Parts Lost 7 | . 1 . 6 Power 1 | . . . 1 Propulsion 3 | . 1 . 2 Utility 1 | . . . 1 Weapon 2 | . . . 2 Highest Loss Streak 6 | . 1 . 6 To Critical Strikes . | . . . . Average Slot Usage (%) 98 | . 96 100 96 Engine 13 | . 14 14 13 Wheel 26 | . 24 28 26 Device 13 | . 12 14 13 Storage 14 | . 14 14 14 Energy Gun 2 | . 9 . . Ballistic Gun 16 | . 18 16 13 Ballistic Cannon 8 | . . 10 14 Naked Turns . | . . . . Heaviest Build 16 | 13 14 16 16 Greatest Support 20 | 20 20 20 20 Greatest Overweight (x) 3 | . 1 . 3 Average Overweight (x) . | . . . . Largest Inventory Capacity 8 | 8 8 8 8 Average Capacity 7 | 6 8 8 8 Most Carried 8 | 3 8 8 8 Average Carried 7 | 1 5 7 8 Final Capacity 8 | 8 8 8 8 Final Carried 8 | 3 8 8 8 Class Distribution -------------------- 100% | Mutant Dominant Class ---------------- Mutant | -10/Materials Mutant | -10/Mines Mutant | -10/Exiles Resources | -11 -10 -10 -10 ----------- Run | Yrd Mat Min Exi Matter Collected 483 | 185 84 214 . Remotely . | . . . . Salvage Created 251 | . 73 178 . Parts 20 | . 10 10 . Haulers Intercepted . | . . . . Recyclers Shooed . | . . . . Parts Field Recycled . | . . . . Retrieved Matter . | . . . . Parts Self-Destructed . | . . . . Prevented . | . . . . Kills | -11 -10 -10 -10 ------- Run | Yrd Mat Min Exi Combat Hostiles Destroyed 9 | . 2 7 . Guns 5 | . 2 3 . Cannons 4 | . . 4 . Classes Destroyed 4 | . 3 1 . Builder 1 | . 1 . . Watcher 1 | . 1 . . Swarmer 5 | . 2 3 . Grunt 4 | . . 4 . Best Kill Streak 3 | . 2 3 . Combat Bots Only 3 | . 2 3 . Max Kills in Single Turn 1 | . 1 1 . Gunslinging . | . . . . Exploded . | . . . . Melee . | . . . . Uniques/NPCs Destroyed . | . . . . Combat | -11 -10 -10 -10 -------- Run | Yrd Mat Min Exi Hostile Shots Fired 100 | . 28 21 51 Missed 32 | . 9 8 15 Damage Taken 915 | . 155 140 620 Core 262 | . 23 35 204 Absorbed by Shields . | . . . . Core Remaining (%) 100 | 100 . . . Volleys Fired 54 | . 19 35 . Largest 2 | . 2 2 . Hottest 100 | . 70 100 . Shots Fired 100 | . 38 61 1 Gun 66 | . 38 27 1 Cannon 25 | . . 25 . Launcher . | . . . . Special 9 | . . 9 . Kinetic 77 | . 24 52 1 Thermal 23 | . 14 9 . Explosive . | . . . . Electromagnetic . | . . . . Robot Hit Streak 9 | . 5 9 3 Robot Miss Streak 5 | . 5 3 . Penetration Max . | . . . . Secondary Targets 1 | . 1 . . Max Gunslinging Chain 1 | . 1 . . Shots Hit Robots 36 | . 18 17 1 Core Hits 16 | . 6 10 . Critical Kills . | . . . . Critical Parts Destroyed . | . . . . Critical Strikes 2 | . 2 . . Burn 2 | . 2 . . Melee Attacks . | . . . . Impact . | . . . . Slashing . | . . . . Piercing . | . . . . Sneak Attacks . | . . . . Combat Hostiles . | . . . . Follow-up Attacks . | . . . . Damage Inflicted 515 | . 193 308 14 Guns 301 | . 193 94 14 Cannons 210 | . . 210 . Explosions . | . . . . Melee . | . . . . Ramming 4 | . . 4 . Kinetic 410 | . 92 304 14 Thermal 101 | . 101 . . Explosive . | . . . . Electromagnetic . | . . . . Impact . | . . . . Slashing . | . . . . Piercing . | . . . . Highest Corruption 13 | . . 2 13 Average Corruption 2 | . . 2 2 Corruption Purged . | . . . . Corruption Blocked . | . . . . Effects 14 | . . 8 6 Message Errors 6 | . . 4 2 Matter Fused 2 | . . 2 . Heat Flow Errors 1 | . . 1 . Energy Discharges 1 | . . . 1 Data Loss (minor) 1 | . . . 1 Data Loss (major) 2 | . . 1 1 Misfires 1 | . . . 1 Overload Shots . | . . . . Overflow Damage . | . . . . Projectiles . | . . . . Explosions . | . . . . Melee . | . . . . Knockbacks 4 | . . 4 . Impact . | . . . . Kinetic 2 | . . 2 . Secondary 2 | . . 2 . Self-Inflicted Damage 2 | . . 2 . Shots . | . . . . Rammed 1 | . . 1 . Targets Rammed 1 | . . 1 . Kicked . | . . . . Crushed . | . . . . Highest Temperature 137 | . 130 137 . Average Temperature 28 | . 55 17 . Received Heat Transfer 68 | . . 48 20 Siege Activations . | . . . . Robots Corrupted . | . . . . Combat Hostiles . | . . . . Parts Fried . | . . . . Impact Corruptions . | . . . . Robots Melted . | . . . . Combat Hostiles . | . . . . Parts Melted . | . . . . Heat Transferred 444 | . 444 . . Parts Sabotaged . | . . . . Parts Stolen . | . . . . Parts Stripped . | . . . . Power Chain Reactions . | . . . . Alert | -11 -10 -10 -10 ------- Run | Yrd Mat Min Exi Peak Influence 125 | . 67 125 . Initial . | . . . . Average 25 | . 33 22 . Maximum Alert Level . | . . . . Low Security (%) 100 | 100 100 100 . Level 1 . | . . . . Level 2 . | . . . . Level 3 . | . . . . Level 4 . | . . . . Level 5 . | . . . . High Security . | . . . . Max Security . | . . . . Squads Dispatched 1 | . 1 . . Investigation . | . . . . Extermination . | . . . . Reinforcement 1 | . 1 . . Assault . | . . . . Garrison . | . . . . Intercept . | . . . . Searches Triggered . | . . . . Construction Impeded . | . . . . Haulers Reinforced . | . . . . Active Scanning Responses . | . . . . Cargo Convoy Interrupts . | . . . . Stealth | -11 -10 -10 -10 --------- Run | Yrd Mat Min Exi Distress Signals . | . . . . Communications Jammed . | . . . . Distress Signals . | . . . . Times Spotted 34 | . 6 7 21 Peak Tracking Total 16 | . 4 3 16 Tactical Retreats 1 | . . . 1 Traps | -11 -10 -10 -10 ------- Run | Yrd Mat Min Exi Traps Triggered . | . . . . Indirectly . | . . . . Trap Hack Attempts . | . . . . Triggered . | . . . . Disarmed . | . . . . Reprogrammed . | . . . . Reused . | . . . . Traps Extracted . | . . . . Installed . | . . . . Triggered . | . . . . Machines | -11 -10 -10 -10 ---------- Run | Yrd Mat Min Exi Machines Disabled . | . . . . Max in Single Turn . | . . . . Machines Repaired . | . . . . Machines Dismantled . | . . . . Machines Sabotaged . | . . . . Overloaded Fab Kills . | . . . . Hacking | -11 -10 -10 -10 --------- Run | Yrd Mat Min Exi Machines Accessed 4 | . 3 1 . Terminals 3 | . 3 . . Fabricators . | . . . . Repair Stations . | . . . . Recycling Units . | . . . . Scanalyzers . | . . . . Garrison Access . | . . . . Total Hacks 7 | . 6 1 . Successful 5 | . 4 1 . Failed 2 | . 2 . . Catastrophic . | . . . . Database Lockouts . | . . . . Manual . | . . . . Terminals 6 | . 6 . . Fabricators . | . . . . Repair Stations . | . . . . Recycling Units . | . . . . Scanalyzers . | . . . . Garrison Access . | . . . . Terminal Hacks 5 | . 4 1 . Open Door 1 | . . 1 . Alert Level 1 | . 1 . . Unreport Threat 1 | . 1 . . Zone Layout 2 | . 2 . . Fabricator Hacks . | . . . . Repair Station Hacks . | . . . . Recycling Unit Hacks . | . . . . Scanalyzer . | . . . . Garrison Access Hacks . | . . . . Unauthorized Hacks . | . . . . Terminals . | . . . . Fabricators . | . . . . Repair Stations . | . . . . Recycling Units . | . . . . Scanalyzers . | . . . . Garrison Access . | . . . . Data Cores Recovered . | . . . . Used . | . . . . Hacking Detections 2 | . 2 . . Full Trace Events . | . . . . Feedback Events . | . . . . Feedback Blocked . | . . . . Robot Schematics Acquired . | . . . . Robots Built . | . . . . Authchips . | . . . . Time . | . . . . Total Robot Build Rating . | . . . . Part Schematics Acquired . | . . . . Parts Built . | . . . . Authchips . | . . . . Time . | . . . . Total Part Build Rating . | . . . . Parts Repaired . | . . . . Time . | . . . . Parts Recycled . | . . . . Recycled Matter . | . . . . Retrieved Matter . | . . . . Retrieved Components . | . . . . Parts Scanalyzed . | . . . . Part Schematics Acquired . | . . . . Parts Damaged . | . . . . Bothacking | -11 -10 -10 -10 ------------ Run | Yrd Mat Min Exi Used RIF Installer . | . . . . Robots Hacked . | . . . . Non-combat . | . . . . Combat . | . . . . Robot Hacks Applied . | . . . . Relay Couplers Released . | . . . . Fabnet Peak Effective % . | . . . . Robots Rewired . | . . . . Allies Hacked . | . . . . Hacks Repelled . | . . . . Allies | -11 -10 -10 -10 -------- Run | Yrd Mat Min Exi Total Allies . | . . . . Largest Group . | . . . . Highest-Rated Group . | . . . . Highest-Rated Ally . | . . . . Total Orders . | . . . . Ally Attacks . | . . . . Total Damage . | . . . . Kills . | . . . . Allies Corrupted . | . . . . Allies Melted . | . . . . Intel | -11 -10 -10 -10 ------- Run | Yrd Mat Min Exi Robot Analysis Total . | . . . . Derelict Logs Recovered . | . . . . Drone Launches . | . . . . Drone Recoveries . | . . . . Exploration | -11 -10 -10 -10 ------------- Run | Yrd Mat Min Exi Turns Passed 1282 | 46 336 716 184 Spaces Moved 1254 | 39 317 676 222 Core 4 | 1 . . 3 Treads . | . . . . Legs . | . . . . Wheels 1250 | 38 317 676 219 Hover . | . . . . Flight . | . . . . Fastest Speed 50 | 50 80 80 80 Average Speed 80 | 79 82 80 81 Slowest Speed 200 | 80 95 80 200 Overloaded Moves . | . . . . Propulsion Burnouts . | . . . . Robots Hopped . | . . . . Cave-ins Triggered . | . . . . Exploration Rate (%) 39 | 4 35 74 45 Regions Visited 3 Branch Regions 2 Pre-discovered Areas . | . . . . Known Exits Taken . | . . . . Unknown Exits Taken 3 | 1 1 1 . Scrap Searched 1 | . . 1 . Spaces Dug 8 | . . 8 . Terrain Destroyed 13 | . . 13 . Melee . | . . . . Projectile 13 | . . 13 . AOE . | . . . . Terrain Rammed . | . . . . Walls Destroyed . | . . . . Machines Disabled . | . . . . Actions | -11 -10 -10 -10 --------- Run | Yrd Mat Min Exi Total 1412 | 53 357 777 225 Wait 39 | . . 39 . Move 1251 | 38 316 675 222 Hop . | . . . . Pick Up 30 | 9 12 9 . Fast Attach . | . . . . Attach 11 | 6 3 2 . Detach . | . . . . Swap 9 | . 2 7 . Drop 14 | . 5 9 . Fire 54 | . 19 35 . Melee . | . . . . Ram 1 | . . 1 . Kick . | . . . . Crush . | . . . . Escape Stasis . | . . . . Rewire 3 | . . . 3 Trap . | . . . . Miscellaneous . | . . . . Route ------- -11/Scrapyard -10/Materials (discovered 2 exits: [*Mat] / *Min) -10/Mines (discovered 3 exits: [*Mat x2] / [*Exi]) -10/Exiles History --------- Turn | Location | Event 6 | -11/Scrapyard | Discovered new exit (range 15) 47 | -11/Scrapyard | Entered Materials 290 | -10/Materials | Discovered new exit (range 13) 316 | -10/Materials | Build established: Mutant 350 | -10/Materials | Discovered new exit (range 16) 383 | -10/Materials | Entered Mines 465 | -10/Mines | Discovered new exit (range 15) 496 | -10/Mines | Discovered new exit (range 10) 531 | -10/Mines | Met a Derelict who couldn't figure out how to use a Trap Extractor 581 | -10/Mines | Deemed a non-threat by the Exiles lab entrance 582 | -10/Mines | Discovered new exit (range 5) 1099 | -10/Mines | Entered Exiles 1129 | -10/Exiles | Met 8R-AWN 1146 | -10/Exiles | Met EX-HEX 1217 | -10/Exiles | Met EX-DEC 1237 | -10/Exiles | Visited The Gauntlet 1253 | -10/Exiles | Attacked by the Exiles 1272 | -10/Exiles | Core integrity fell below 50% 1277 | -10/Exiles | System corruption reached 10% 1283 | -10/Exiles | Destroyed by as-04094 with Assembled Maul Last Messages --------------- anyway, seeing as the Mines are expanding a bit too close for comfort. 01253_ System corrupted: FCS attempts to trigger Assault Rifle. 01253_ System corrupted: Assault Rifle misfires. 01253_ EXILES: Hostile robot within lab perimeter. Defensive protocols time, folks! 01275_ Lgt. Ion Engine destroyed. 01276_ EX-BIN: "I just want to science!" 01276_ Sensor Array destroyed. 01276_ Wheel destroyed. 01276_ System corrupted by crushing effect (+4). 01276_ Knocked back. 01277_ Wheel destroyed. 01278_ as-64645 destroyed. 01279_ Machine disabled. 01279_ Assault Rifle destroyed. 01282_ Assault Cannon destroyed. 01283_ Knocked back. Map ----- +----------------------------------------------------+ | ?????????????????????????????????????????????????? | | ?????????????????????????????????????????????????? | | ?????????????????????????????????????????????????? | | ?????????????????????????????????????????????????? | | ????????????????????????????????????????????????## | | ???????????????????????????????????????????????? | | ??????????????????????????????????????????????? | | ??????????????????????????????????????????????? | | ?????????????????????????? ??????????????? | | ?????????????????????? ?????????????? | | ???????????????????? ????????????? | | ??????????????????""" ?????????????? | | ??????????????????" ?????????????? | | ?????????????????"" ?????????????""" | | ?????????????????""" """????????????#""" | | ????????????????""" """#????????????#""" | | ????????????????""" z ""#???????????##"" | | ????????????????"" ########??####"""" | | ????????????????""" ##aaa####""" | | ????????????????"" t """" | | ????????????????#"" | | ????????????????#"""" | | ?????????????????# | | ?????????????????#" " "" | | ?????????????????#"" " % ""## ##""" " | | ?????????????????#" @ a ""#### ######" | | ?????????????????#" aa """"##??# #????## | | ?????????????????#""" a """#??## ####??? | | ?????????????????## % a ""##??#! "!#??? | | ??????????????????#"" az"""##???#" !#??? | | ??????????????????##""" z c ##????#" "#??? | | ???????????????????##"""" ##?????#!!""!"#??? | | ????????????????????### #??????########??? | | ??????????????????????#####z ##????????????????? | | ??????????????????????????## #?????????????????? | | ???????????????????????????# z#?????????????????? | | ???????????????????????????# #?????????????????? | | ???????????????????????????# #?????????????????? | | ???????????????????????????# #?????????????????? | | ???????????????????????????# #?????????????????? | | ???????????????????????????# #?????????????????? | | ???????????????????????????# #?????????????????? | | ???????????????????????????# #?????????????????? | | ???????????????????????????# #?????????????????? | | ?????????????????##"""###### ########?####?????? | | ????????????????""" """""" """""""#"""""#????? | | ???????????????""" "#"" ""#????? | | ????????????? " ""#????? | | ????????????? " " "#????? | | ????????????? " """#????? | +----------------------------------------------------+ Best States ------------- Heat Dissipation 25 Energy Generation 10 Energy Capacity 250 Matter Stores 260 Matter Capacity 300 Sight Range 16 Robot Scan Range 14 Terrain Scan Density 10 Evasion (%) 44 Authchip Count 1 Item Schematics ----------------- None Robot Schematics ------------------ None Fabricated ------------ Nothing Alien Tech Used ----------------- None Achievements -------------- None Challenges ------------ None Game ------ Seed SingularityDisruptorHumpback Manual? 0 Play Time 00:22:22 Cumulative 35.7 hours Start 2024.08.06 @ 03:20:20 End 2024.08.06 @ 03:46:05 Sessions 1 Manual Loads 0 Difficulty Rogue Special Mode None Game No. 53 Rogue 53 Adventurer 0 Explorer 0 Win Type - Total 0 Types 0/0/0/0/0/0/0/0/0 Lore% 19 Gallery% 28 Achievement% 23 Wizard Run 0 Options --------- Layout 1 ASCII 0 Keyboard 0 Movement Arrows Keybinds 0 Fullscreen 1 Font 16/SmallcapsGlow Map View 50x40 Zoom Use 0% Tactical HUD 1 Map Filters NONE Filters NONE Steam SD RUN: 79563629-c21c-4303-ba2a-84001fdd4406